bitfinex/quotes_SOLUSD_20260203
["timestamp","ask_amount","ask_price","bid_price","bid_amount"]
[1770080728033,36.24999696,104.28,104.23,2.62585725]
[1770080728034,41.82388402,104.28,104.23,2.83433535]
[1770080728239,5.57388706,104.28,104.24,2.62585725]
[1770080728441,19.91549143,104.28,104.24,2.62585725]
[1770080728640,7.58634338,104.27,104.24,2.62585725]
[1770080729264,10.32589509,104.27,104.24,2.62585725]
[1770080730059,2.73955171,104.27,104.24,2.62585725]
[1770080730260,7.58634338,104.27,104.22,19.80687058]
[1770080730462,10.32589509,104.26,104.23,2.62585725]
[1770080730643,2.73955171,104.26,104.23,2.62585725]
[1770080731343,10.32589509,104.27,104.24,2.62585725]
[1770080731553,26.66,104.28,104.24,2.62585725]
[1770080731554,36.98589509,104.28,104.24,2.62585725]
[1770080731950,10.32589509,104.27,104.24,2.62585725]
[1770080732744,2.73955171,104.26,104.23,2.62585725]
[1770080732943,2.73955171,104.26,104.22,17.18098278]
[1770080732944,2.73955171,104.25,104.22,2.62585725]
[1770080733149,2.73955171,104.25,104.22,12.22088093]
[1770080733363,10.32589509,104.26,104.23,2.62585725]
[1770080733666,10.32589509,104.27,104.23,2.62585725]
[1770080734867,10.32589509,104.26,104.23,2.62585725]
[1770080735765,2.73955171,104.24,104.2,19.80865751]
[1770080736065,10.32589509,104.24,104.21,2.62585725]
[1770080736259,2.73955171,104.23,104.2,12.22231413]
[1770080736462,10.32589509,104.22,104.19,2.62585725]
[1770080738361,10.3337943,104.22,104.19,2.62585725]
[1770080739470,2.73955171,104.22,104.19,12.2235922]
[1770080740152,10.3337943,104.23,104.19,2.62585725]
[1770080740346,2.73955171,104.22,104.19,2.62585725]
[1770080740547,10.3337943,104.22,104.19,2.62585725]
[1770080741264,2.73955171,104.22,104.19,2.62585725]
[1770080741659,10.3337943,104.22,104.18,2.62585725]
[1770080741859,7.59424259,104.2,104.17,2.62585725]
[1770080742777,7.59424259,104.2,104.17,12.22551071]
[1770080743069,10.3337943,104.2,104.17,2.62585725]
[1770080743250,7.59424259,104.18,104.16,2.62585725]
[1770080745670,10.3337943,104.19,104.16,2.62585725]
[1770080746374,10.3337943,104.21,104.17,2.62585725]
[1770080747958,10.3337943,104.21,104.17,12.22536592]
[1770080748162,40.53003625,104.23,104.19,2.62585725]
[1770080748163,2.73955171,104.22,104.19,2.62585725]
[1770080749883,10.3337943,104.23,104.19,12.22370288]
[1770080750187,7.59424259,104.23,104.2,2.62585725]
[1770080750561,10.14238287,104.24,104.2,2.62585725]
[1770080751889,7.59424259,104.23,104.2,2.62585725]
[1770080752367,10.14238287,104.23,104.2,2.62585725]
[1770080752896,10.14238287,104.22,104.19,2.49792481]
[1770080753260,29.20814028,104.24,104.2,2.49792481]
[1770080753480,36.80238287,104.24,104.21,2.49792481]
[1770080754071,9.59165655,104.26,104.21,2.49792481]
[1770080754072,10.14238287,104.25,104.21,2.49792481]
[1770080754488,2.54814028,104.24,104.21,2.49792481]
[1770080754673,5.38191065,104.24,104.21,2.49792481]
[1770080756980,5.38191065,104.23,104.19,12.09501845]
[1770080757293,5.38191065,104.22,104.19,2.49792481]
[1770080758589,5.38191065,104.22,104.18,12.09630698]
[1770080758769,5.38191065,104.2,104.17,2.49792481]
[1770080759087,2.83377037,104.19,104.17,2.49792481]
[1770080759498,5.38191065,104.2,104.17,2.49792481]
[1770080760393,10.14582594,104.2,104.17,2.49792481]
[1770080760594,2.54814028,104.17,104.14,2.49792481]
[1770080760799,7.59768566,104.16,104.14,2.49792481]
[1770080761107,26.66,104.19,104.11,2.49792481]
[1770080761108,10.14582594,104.15,104.11,2.49792481]
[1770080761292,7.59768566,104.14,104.11,2.49792481]
[1770080761498,2.54814028,104.15,104.11,2.49792481]
[1770080761499,7.59768566,104.13,104.11,2.49792481]
[1770080761797,7.59768566,104.12,104.09,2.69792481]
[1770080762501,10.14582594,104.14,104.1,2.49792481]
[1770080762993,7.59768566,104.13,104.1,2.49792481]
[1770080763368,7.59768566,104.14,104.1,2.49792481]
[1770080764194,7.59768566,104.14,104.11,2.49792481]
[1770080764385,10.14582594,104.16,104.12,2.49792481]
[1770080765300,19.74651684,104.16,104.12,2.49792481]
[1770080765476,7.59768566,104.15,104.12,2.49792481]
[1770080766396,10.14582594,104.16,104.12,12.10221985]
[1770080766575,10.14582594,104.16,104.12,2.49792481]
[1770080767301,10.14582594,104.16,104.12,12.10188749]
[1770080767475,7.59768566,104.17,104.13,2.49792481]
[1770080767681,7.59768566,104.17,104.14,2.49792481]
[1770080768691,29.22814028,104.18,104.14,10.09561047]
[1770080768989,26.68,104.18,104.15,2.49792481]
[1770080769199,2.54814028,104.19,104.16,2.49792481]
[1770080769392,7.59768566,104.22,104.19,2.49792481]
[1770080769577,10.14582594,104.23,104.19,2.49792481]
[1770080769974,7.59768566,104.24,104.2,2.49792481]
[1770080770169,36.82582594,104.25,104.21,2.49792481]
[1770080770596,36.82582594,104.25,104.21,12.09375127]
[1770080771310,10.14582594,104.25,104.21,12.09375127]
[1770080771794,5.36086188,104.29,104.23,2.49792481]
[1770080771795,2.54814028,104.29,104.23,2.49792481]
[1770080772093,7.59768566,104.26,104.23,2.49792481]
[1770080772293,10.14582594,104.28,104.24,2.49792481]
[1770080773595,10.14582594,104.27,104.24,2.49792481]
[1770080773798,10.14582594,104.26,104.22,12.09256069]
[1770080774101,7.59768566,104.26,104.23,12.09177573]
[1770080774788,7.59768566,104.26,104.23,2.49792481]
[1770080775301,10.14582594,104.26,104.22,12.09256135]
[1770080776585,10.14582594,104.25,104.21,12.09366216]
[1770080776981,10.14582594,104.25,104.22,2.49792481]
[1770080777306,2.54814028,104.25,104.22,12.09266801]
[1770080778802,10.14582594,104.26,104.22,12.09266801]
[1770080778988,10.14582594,104.27,104.23,2.49792481]
[1770080779508,10.14582594,104.24,104.2,2.49792481]
[1770080779688,10.14582594,104.24,104.2,12.09452185]
[1770080780607,9.98017576,104.23,104.19,12.00735638]
[1770080781485,7.59768566,104.23,104.19,2.40993993]
[1770080781700,7.59768566,104.23,104.18,2.40993993]
[1770080781701,9.98017576,104.21,104.18,2.40993993]
[1770080782803,9.98017576,104.2,104.17,9.59917116]
[1770080783008,9.98017576,104.2,104.17,12.00911109]
[1770080783500,9.98017576,104.2,104.17,2.40993993]
[1770080783704,7.59768566,104.19,104.16,12.01034028]
[1770080783889,9.98017576,104.2,104.17,12.00956825]
[1770080784583,2.3824901,104.2,104.17,12.00956825]
[1770080784888,9.98017576,104.2,104.17,12.00956825]
[1770080785708,9.98017576,104.2,104.17,2.40993993]
[1770080787210,9.98017576,104.21,104.18,2.40993993]
[1770080787599,9.98017576,104.2,104.16,12.01019322]
[1770080787904,7.59768566,104.18,104.15,2.40993993]
[1770080788109,7.59768566,104.17,104.15,2.40993993]
[1770080788691,9.98017576,104.18,104.15,12.01135966]
[1770080789007,2.3824901,104.2,104.16,2.40993993]
[1770080789211,7.59768566,104.19,104.16,2.40993993]
[1770080789507,9.98017576,104.18,104.15,2.40993993]
[1770080790291,9.98017576,104.18,104.15,12.01131158]
[1770080790510,7.59768566,104.18,104.15,12.01131158]
[1770080790703,9.98017576,104.18,104.15,2.40993993]
[1770080794717,9.98017576,104.17,104.13,12.01278148]
[1770080794919,9.98017576,104.17,104.12,7.59768566]
[1770080794920,9.98017576,104.14,104.1,12.01570754]
[1770080795098,33.59571671,104.18,104.1,2.40993993]
[1770080795099,9.98017576,104.13,104.1,2.40993993]
[1770080795415,7.59768566,104.12,104.09,2.60993993]
[1770080795622,2.3824901,104.13,104.09,0.2]
[1770080795623,9.98017576,104.1,104.09,0.2]
[1770080795820,9.98017576,104.11,104.09,0.2]
[1770080796517,7.59768566,104.1,104.09,0.2]
[1770080796913,2.3824901,104.11,104.09,0.2]
[1770080797103,7.59768566,104.11,104.09,0.2]
[1770080799342,2.3824901,104.1,104.09,0.2]
[1770080799635,9.98017576,104.1,104.07,2.40993993]
[1770080799928,9.98017576,104.1,104.07,12.01884181]
[1770080800531,9.99370757,104.1,104.07,12.01884181]
[1770080800911,9.99370757,104.12,104.08,2.40993993]
[1770080801927,36.67370757,104.13,104.09,2.40993993]
[1770080802427,7.61121747,104.12,104.09,2.40993993]
[1770080802617,34.29121747,104.13,104.09,2.40993993]
[1770080803012,34.29121747,104.13,104.1,2.40993993]
[1770080803328,7.61121747,104.14,104.11,2.40993993]
[1770080805118,7.61121747,104.14,104.11,12.01496807]
[1770080805303,9.99370757,104.15,104.12,2.40993993]
[1770080805513,113.29370757,104.16,104.12,2.40993993]
[1770080805913,9.99370757,104.14,104.11,2.40993993]
[1770080807132,9.99370757,104.13,104.1,2.40993993]
[1770080808238,9.99370757,104.13,104.11,2.40993993]
[1770080808239,7.61121747,104.13,104.11,2.40993993]
[1770080808431,9.99370757,104.14,104.11,2.40993993]
[1770080809032,36.67370757,104.15,104.11,12.01502692]
[1770080809224,9.99370757,104.15,104.11,19.62624439]
[1770080809536,9.99370757,104.15,104.11,12.01502692]
[1770080811932,2.23046816,104.14,104.11,12.01502692]
[1770080812136,2.23046816,104.14,104.11,2.40993993]
[1770080812638,113.14168563,104.16,104.12,2.34113296]
[1770080814753,9.84168563,104.16,104.12,2.34113296]
[1770080817247,9.84168563,104.16,104.12,11.94533268]
[1770080817742,29.35724859,104.19,104.12,11.94533268]
[1770080817743,9.84168563,104.19,104.15,2.34113296]
[1770080818329,9.84168563,104.2,104.16,2.34113296]
[1770080818720,2.23046816,104.2,104.17,2.34113296]
[1770080819949,9.84168563,104.2,104.17,2.34113296]
[1770080820244,2.23046816,104.2,104.17,11.94063095]
[1770080820939,9.84168563,104.2,104.17,2.34113296]
[1770080822530,9.84168563,104.19,104.15,2.34113296]
[1770080822730,9.84168563,104.18,104.15,11.94266595]
[1770080824527,9.84168563,104.18,104.15,2.34113296]
[1770080824728,7.61121747,104.18,104.15,11.94262457]
[1770080825031,9.84168563,104.19,104.15,11.94262457]
[1770080826346,9.84168563,104.19,104.15,2.34113296]
[1770080826347,7.61121747,104.18,104.15,2.34113296]
[1770080826848,9.84168563,104.19,104.15,2.34113296]
[1770080829948,2.23046816,104.18,104.14,2.34113296]
[1770080830159,7.61121747,104.19,104.13,2.34113296]
[1770080830160,9.84168563,104.16,104.13,2.34113296]
[1770080830350,2.23046816,104.13,104.1,2.34113296]
[1770080830937,9.84168563,104.14,104.1,2.34113296]
[1770080832454,9.84168563,104.14,104.1,11.94666065]
[1770080833662,9.84168563,104.14,104.11,2.34113296]
[1770080833850,9.84168563,104.15,104.11,9.95235043]
[1770080834152,9.84168563,104.14,104.11,2.34113296]
[1770080834857,9.84168563,104.15,104.12,2.34113296]
[1770080835543,7.61121747,104.15,104.12,2.34113296]
[1770080835748,9.84168563,104.16,104.12,2.34113296]
[1770080836257,2.23046816,104.17,104.14,2.34113296]
[1770080837149,2.23046816,104.17,104.14,19.55460787]
[1770080837546,2.23046816,104.17,104.14,11.9433904]
[1770080837739,2.23046816,104.17,104.14,2.34113296]
[1770080837941,9.84168563,104.17,104.13,11.94402888]
[1770080838347,2.23046816,104.16,104.13,2.34113296]
[1770080838745,9.84168563,104.17,104.14,2.34113296]
[1770080838961,9.84168563,104.18,104.14,11.9435493]
[1770080839765,9.84168563,104.18,104.15,2.34113296]
[1770080840146,9.84168563,104.18,104.14,11.76284082]
[1770080840674,9.84168563,104.18,104.15,2.16042448]
[1770080841571,9.84168563,104.18,104.15,11.76170201]
[1770080841745,9.84743543,104.21,104.17,2.16042448]
[1770080841945,9.84743543,104.21,104.16,7.61121747]
[1770080842464,2.23621796,104.22,104.18,7.61121747]
[1770080842655,9.84743543,104.22,104.17,7.61121747]
[1770080842845,26.68,104.23,104.19,7.61121747]
[1770080843385,9.84743543,104.24,104.2,7.61121747]
[1770080843552,2.23621796,104.23,104.19,17.20825456]
[1770080843754,9.84743543,104.23,104.18,17.20949297]
[1770080844058,9.84743543,104.23,104.19,11.75824493]
[1770080844462,9.59277165,104.25,104.18,11.75873653]
[1770080844463,9.84743543,104.22,104.18,11.75873653]
[1770080844763,9.84743543,104.22,104.18,19.369954]
[1770080845380,9.84743543,104.21,104.17,11.75989401]
[1770080846453,60.25642727,104.24,104.19,2.16042448]
[1770080846454,9.84743543,104.23,104.19,2.16042448]
[1770080846648,2.23621796,104.22,104.19,2.16042448]
[1770080846875,9.84743543,104.21,104.18,2.16042448]
[1770080847648,2.23621796,104.18,104.15,9.60108586]
[1770080847849,9.84743543,104.18,104.14,2.16042448]
[1770080848053,9.84743543,104.19,104.15,11.76146658]
[1770080848258,9.84743543,104.18,104.15,9.6010421]
[1770080848478,9.84743543,104.18,104.14,11.76241298]
[1770080848657,9.84743543,104.18,104.15,2.16042448]
[1770080848854,9.84743543,104.19,104.15,2.16042448]
[1770080849657,2.23621796,104.18,104.15,2.16042448]
[1770080850174,9.84743543,104.18,104.15,2.16042448]
[1770080851083,7.61121747,104.17,104.14,11.76241298]
[1770080851449,9.84743543,104.18,104.15,9.60134595]
[1770080852377,9.84743543,104.18,104.14,11.76212938]
[1770080852550,2.23621796,104.18,104.15,11.76195204]
[1770080854265,9.84743543,104.18,104.15,11.76195204]
[1770080855865,9.84743543,104.18,104.15,2.16042448]
[1770080856679,2.23621796,104.18,104.15,11.76193971]
[1770080860766,9.84743543,104.19,104.16,2.16042448]
[1770080862384,9.83497925,104.19,104.16,2.16042448]
[1770080862683,9.83497925,104.19,104.16,11.76100682]
[1770080863875,2.23621796,104.19,104.16,11.76100682]
[1770080864181,9.83497925,104.19,104.16,11.76100682]
[1770080865778,9.83497925,104.17,104.14,2.16042448]
[1770080866671,9.83497925,104.17,104.14,11.76231959]
[1770080867682,2.23621796,104.16,104.13,2.16042448]
[1770080867987,2.23621796,104.15,104.12,2.16042448]
[1770080868500,2.23621796,104.14,104.11,11.76520025]
[1770080868998,5.07499851,104.14,104.11,11.76520025]
[1770080870497,9.84176853,104.14,104.11,11.76520025]
[1770080871087,9.84176853,104.14,104.1,2.37846063]
[1770080871088,2.29808059,104.13,104.1,2.37846063]
[1770080871291,9.90363116,104.11,104.08,2.37846063]
[1770080871809,7.60555057,104.1,104.08,2.37846063]
[1770080872019,7.60555057,104.1,104.07,11.98702282]
[1770080872708,9.90363116,104.1,104.07,2.37846063]
[1770080874481,7.60555057,104.1,104.07,11.98682485]
[1770080874784,2.29808059,104.11,104.08,2.37846063]
[1770080874785,9.90363116,104.11,104.08,2.37846063]
[1770080875409,9.90363116,104.11,104.07,11.98682485]
[1770080877196,9.90363116,104.12,104.08,2.37846063]
[1770080877912,7.60555057,104.12,104.08,2.37846063]
[1770080878105,9.90363116,104.13,104.09,2.37846063]
[1770080879213,2.29808059,104.12,104.09,11.98553041]
[1770080879511,9.90363116,104.14,104.1,2.37846063]
[1770080879731,2.29808059,104.13,104.1,2.37846063]
[1770080879923,9.90363116,104.14,104.1,2.37846063]
[1770080881023,9.90363116,104.14,104.07,2.37846063]
[1770080881024,2.29808059,104.1,104.07,2.37846063]
[1770080881320,7.60555057,104.08,104.06,0.2]
[1770080882430,2.29808059,104.07,104.06,0.2]
[1770080882612,9.90363116,104.07,104.06,0.2]
[1770080882812,2.29808059,104.08,104.06,0.2]
[1770080883824,9.90363116,104.07,104.06,0.2]
[1770080884028,9.90363116,104.07,104.05,0.2]
[1770080884524,9.90363116,104.08,104.05,12.18920908]
[1770080884726,36.28576609,104.11,104.05,12.18920908]
[1770080884727,9.90363116,104.09,104.05,12.18920908]
[1770080885236,9.90363116,104.09,104.06,11.98808971]
[1770080885410,9.90363116,104.09,104.06,2.37846063]
[1770080889643,9.90363116,104.09,104.05,12.18874056]
[1770080889941,2.29808059,104.11,104.06,9.6093998]
[1770080890122,9.90363116,104.09,104.06,2.37846063]
[1770080890325,9.90363116,104.08,104.05,12.18895055]
[1770080890522,5.14097618,104.08,104.05,0.2]
[1770080890726,5.14097618,104.07,104.05,0.2]
[1770080892355,5.14097618,104.06,104.03,25.32897188]
[1770080892651,2.29808059,104.05,104.03,25.32897188]
[1770080894447,5.14097618,104.07,104.04,2.37846063]
[1770080895150,2.29808059,104.06,104.03,37.32001994]
[1770080896336,5.14097618,104.07,104.03,37.32001994]
[1770080896544,2.29808059,104.06,104.03,37.32001994]
[1770080898731,2.29808059,104.05,104.03,34.94155931]
[1770080899347,2.29808059,104.05,104.03,25.32897188]
[1770080899741,2.29808059,104.05,104.03,34.94156492]
[1770080901048,2.48972087,104.06,104.03,37.40526389]
[1770080903231,2.48972087,104.05,104.03,25.32897188]
[1770080903430,5.33261646,104.06,104.03,27.79267085]
[1770080903743,2.48972087,104.05,104.03,25.32897188]
[1770080905745,5.33261646,104.06,104.03,12.07624498]
[1770080906952,5.33261646,104.06,104.03,9.61254601]
[1770080908137,5.33261646,104.06,104.03,12.07624498]
[1770080908338,2.48972087,104.05,104.03,9.61254601]
[1770080912363,2.48972087,104.05,104.02,0.2]
[1770080912660,2.48972087,104.03,104.02,0.2]
[1770080913456,5.33261646,104.04,104.02,0.2]
[1770080914162,2.48972087,104.03,103.99,4.47527085]
[1770080914453,2.48972087,104.03,103.98,0.2]
[1770080914454,2.48972087,103.99,103.98,0.2]
[1770080914658,2.84289559,103.99,103.96,0.2]
[1770080914839,2.48972087,103.97,103.96,0.2]
[1770080915153,2.48972087,103.97,103.93,27.09558367]
[1770080915154,2.48972087,103.96,103.93,0.2]
[1770080915454,2.84289559,103.95,103.93,0.2]
[1770080915761,5.33261646,103.94,103.91,9.62323249]
[1770080916443,2.84289559,103.98,103.9,0.2]
[1770080916444,2.48972087,103.92,103.9,0.2]
[1770080916749,5.33261646,103.92,103.9,0.2]
[1770080917331,2.48972087,103.92,103.9,0.2]
[1770080918256,2.48972087,103.95,103.91,1.81797159]
[1770080918560,2.84289559,103.94,103.9,0.2]
[1770080918768,2.48972087,103.93,103.9,0.2]
[1770080919055,2.48972087,103.92,103.9,0.2]
[1770080919870,5.33261646,103.92,103.9,0.2]
[1770080920053,2.48972087,103.92,103.9,0.2]
[1770080920750,5.33261646,103.92,103.9,0.2]
[1770080922173,2.48972087,103.91,103.9,0.2]
[1770080922377,5.33261646,103.91,103.87,11.41321037]
[1770080922959,5.33261646,103.91,103.88,1.76036706]
[1770080922960,2.48972087,103.91,103.88,1.76036706]
[1770080923163,5.33261646,103.91,103.87,9.62704218]
[1770080923360,2.48972087,103.9,103.87,11.38740924]
[1770080923540,5.33261646,103.91,103.87,11.38740924]
[1770080924161,2.48972087,103.91,103.87,11.38740924]
[1770080924459,5.34129735,103.92,103.88,1.73486228]
[1770080924670,5.34129735,103.91,103.87,11.36190446]
[1770080924876,2.48972087,103.9,103.87,1.73486228]
[1770080925736,2.48972087,103.91,103.87,11.36213117]
[1770080925956,5.34129735,103.91,103.87,11.36213117]
[1770080926542,2.48972087,103.91,103.87,38.28225487]
[1770080926737,2.48972087,103.91,103.88,11.28584941]
[1770080926944,2.48972087,103.92,103.88,14.13742589]
[1770080932446,5.25827491,103.94,103.9,1.49538397]
[1770080932646,2.40669843,103.93,103.9,1.49538397]
[1770080933665,5.25827491,103.93,103.9,1.49538397]
[1770080933869,5.25827491,103.92,103.88,35.14270704]
[1770080934168,5.25827491,103.92,103.89,1.45071958]
[1770080934480,5.25827491,103.92,103.88,25.51694984]
[1770080934652,2.40669843,103.91,103.88,35.14276533]
[1770080934968,5.25827491,103.92,103.89,9.62541354]
[1770080935266,5.25827491,103.91,103.88,9.6259661]
[1770080935462,2.40669843,103.89,103.87,9.62673751]
[1770080935664,2.40669843,103.89,103.86,11.05669026]
[1770080935882,5.25827491,103.9,103.87,9.62731146]
[1770080936076,5.25827491,103.9,103.86,11.05669539]
[1770080936244,2.40669843,103.89,103.86,11.05669539]
[1770080936447,5.25827491,103.9,103.86,11.05669539]
[1770080936666,5.25827491,103.9,103.86,37.97913649]
[1770080936968,2.40669843,103.9,103.87,1.38562846]
[1770080937658,2.40669843,103.9,103.86,36.55036508]
[1770080937863,2.40669843,103.9,103.86,37.914793]
[1770080938167,5.25827491,103.9,103.86,35.06321652]
[1770080938372,2.40669843,103.9,103.87,1.36442792]
[1770080938551,2.40669843,103.9,103.87,9.62741626]
[1770080940551,2.40669843,103.92,103.89,1.32275457]
[1770080940869,2.40669843,103.93,103.89,4.17433105]
[1770080941050,2.40669843,103.93,103.9,1.3022762]
[1770080941368,2.40669843,103.93,103.9,4.15385268]
[1770080942055,2.40669843,103.94,103.91,10.90574587]
[1770080942256,2.40669843,103.94,103.91,9.62371282]
[1770080943161,2.40669843,103.94,103.91,12.4752893]
[1770080943670,2.40669843,103.94,103.92,2.85157648]
[1770080944167,2.40669843,103.94,103.92,12.47411695]
[1770080944468,2.40669843,103.94,103.92,9.62254047]
[1770080944861,15.90310154,103.95,103.92,9.62254047]
[1770080945058,15.90310154,103.95,103.92,12.47411695]
[1770080945263,15.90310154,103.95,103.92,13.69680495]
[1770080945778,15.90310154,103.95,103.92,10.84522847]
[1770080945955,15.90310154,103.95,103.92,13.69680495]
[1770080946957,2.40669843,103.94,103.92,9.62254047]
[1770080947356,15.90310154,103.95,103.92,12.47411695]
[1770080947581,15.90310154,103.95,103.92,13.65836895]
[1770080947785,13.49640311,103.95,103.93,2.85157648]
[1770080948478,2.40669843,103.97,103.94,10.78629962]
[1770080948866,2.40669843,103.97,103.94,9.62093515]
[1770080949071,2.40669843,103.97,103.94,12.47251163]
[1770080953668,2.40669843,103.97,103.94,2.85157648]
[1770080953871,2.40669843,103.97,103.94,12.47247969]
[1770080954475,2.40669843,103.97,103.93,13.6196314]
[1770080959888,2.40669843,103.97,103.94,12.47239565]
[1770080960765,8.41846427,104.0,103.97,0.92262225]
[1770080960965,2.23703374,103.99,103.96,3.77419873]
[1770080961178,2.23703374,103.98,103.95,0.92262225]
[1770080962076,5.08861022,103.96,103.93,9.62136776]
[1770080962761,2.23703374,103.96,103.94,9.62087683]
[1770080965389,2.23703374,103.98,103.95,10.48018823]
[1770080965906,2.23703374,103.99,103.96,3.71175509]
[1770080966468,2.23703374,103.99,103.96,0.86017861]
[1770080967573,2.23703374,103.97,103.94,9.6204016]
[1770080967993,2.23703374,103.97,103.95,9.6200066]
[1770080970393,2.23703374,103.97,103.94,13.28722546]
[1770080971496,2.23703374,103.97,103.94,37.33956334]
[1770080972206,2.23703374,103.97,103.94,34.48798686]
[1770080972497,2.23703374,103.97,103.94,37.33956334]
[1770080974971,2.23703374,103.98,103.95,0.71612941]
[1770080975678,2.23703374,103.98,103.94,37.24048927]
[1770080977303,2.23703374,103.98,103.95,0.68926322]
[1770080978497,2.23703374,103.98,103.95,9.61987116]
[1770080978689,2.23703374,103.97,103.94,34.34878098]
[1770080979294,2.23703374,103.97,103.93,13.13602588]
[1770080979692,2.23703374,103.97,103.93,10.2844494]
[1770080979892,2.23703374,103.95,103.92,9.62230078]
[1770080980593,2.23703374,103.94,103.91,34.33231158]
[1770080981103,2.23703374,103.94,103.91,37.18388806]
[1770080982601,2.23703374,103.99,103.93,3.47632827]
[1770080982782,2.23703374,103.96,103.92,3.46386715]
[1770080982982,2.23703374,103.95,103.92,0.61229067]
[1770080983292,2.23703374,103.94,103.91,34.29449215]
[1770080984691,2.23703374,103.95,103.92,0.59997267]
[1770080986388,2.23703374,103.95,103.92,10.22195333]
[1770080989205,2.23703374,103.95,103.92,9.62198066]
[1770080989413,2.23703374,103.94,103.91,9.62334927]
[1770080989717,2.23703374,103.94,103.92,9.62274564]
[1770080990010,2.23703374,103.95,103.92,10.15172528]
[1770080994514,2.23703374,103.95,103.92,9.62274564]
[1770080995018,1.96557902,103.93,103.9,9.62436516]
[1770080995201,1.96557902,103.92,103.9,9.62436516]
[1770080997117,1.36557904,103.93,103.9,36.96667126]
[1770080998699,1.36557904,103.93,103.91,2.84940456]
[1770080998918,2.84940456,103.95,103.91,3.86034763]
[1770080999111,1.96557902,103.94,103.91,3.86034763]
[1770080999622,1.96557902,103.94,103.91,1.01094307]
[1770081000122,1.96557902,103.94,103.92,9.62278675]
[1770081000829,1.96557902,103.94,103.91,10.61471176]
[1770081000830,1.96557902,103.93,103.91,10.61471176]
[1770081001118,1.96557902,103.93,103.91,9.62366441]
[1770081002132,1.96557902,103.95,103.92,10.60350885]
[1770081002422,1.96557902,103.95,103.92,9.6222383]
[1770081002720,1.96557902,103.95,103.92,13.45291341]
[1770081003208,1.96557902,103.95,103.92,10.60350885]
[1770081003612,1.96557902,103.94,103.92,9.6222383]
[1770081007606,1.96557902,103.95,103.92,10.56265844]
[1770081008128,1.96557902,103.96,103.93,3.78193397]
[1770081008505,1.96557902,103.96,103.93,0.93252941]
[1770081009206,1.96557902,103.96,103.94,9.62093515]
[1770081009823,1.96557902,103.97,103.94,13.38735853]
[1770081010321,2.84940456,103.99,103.96,3.76642338]
[1770081010322,1.96557902,103.99,103.96,3.76642338]
[1770081010829,8.14700955,104.0,103.97,3.75880144]
[1770081011509,6.18143053,104.0,103.99,0.90939688]
[1770081011699,1e-08,104.0,103.99,3.75880144]
[1770081011903,0.2,104.03,104.0,0.90186249]
[1770081011904,2.16557902,104.03,104.0,0.90186249]
[1770081012124,2.16557902,104.03,104.0,3.75126705]
[1770081012315,1.96557902,104.05,104.02,0.90186249]
[1770081012515,0.2,104.06,104.04,3.75126705]
[1770081013327,0.2,104.06,104.04,13.36235931]
[1770081013728,1e-08,104.06,104.05,2.84940456]
[1770081014031,6.29503591,104.08,104.06,3.73645689]
[1770081014224,0.2,104.09,104.07,3.73645689]
[1770081014706,0.2,104.09,104.06,3.73645689]
[1770081015314,0.2,104.09,104.06,0.88705233]
[1770081015315,2.16557902,104.09,104.06,0.88705233]
[1770081015521,2.16557902,104.09,104.06,10.49672685]
[1770081015926,2.16557902,104.09,104.06,13.34613141]
[1770081017438,2.16557902,104.09,104.05,13.32531942]
[1770081017617,1.96557902,104.08,104.05,10.47591486]
[1770081017935,1.96557902,104.07,104.03,13.32000995]
[1770081018489,1.96557902,104.07,104.02,24.03204849]
[1770081018490,1.96557902,104.05,104.02,12.46247412]
[1770081019026,1.96557902,104.05,104.02,13.3139641]
[1770081019627,1.96557902,104.07,104.03,3.70089454]
[1770081019831,1.96557902,104.07,104.04,0.8446207]
[1770081020028,1.96557902,104.07,104.04,3.69402526]
[1770081020533,1.96557902,104.07,104.04,8.45862637]
[1770081021131,1.96557902,104.07,104.05,7.61400567]
[1770081021331,1.89961247,104.08,104.05,18.0557119]
[1770081021545,0.2,104.09,104.06,8.44512362]
[1770081021930,1.89961247,104.12,104.08,7.61400567]
[1770081022126,1.89961247,104.12,104.09,7.61400567]
[1770081023838,1.89961247,104.12,104.09,17.22071532]
[1770081024338,1.89961247,104.12,104.08,17.22152741]
[1770081024722,1.89961247,104.12,104.09,9.60652738]
[1770081025039,8.17393625,104.13,104.1,7.61400567]
[1770081025238,8.17393625,104.13,104.1,8.41903627]
[1770081025534,1.89961247,104.12,104.09,7.61400567]
[1770081025717,1.89961247,104.12,104.09,17.22064754]
[1770081026825,1.89961247,104.11,104.08,9.60767982]
[1770081028744,7.61400567,104.12,104.09,8.39412698]
[1770081028745,1.89961247,104.12,104.09,8.39412698]
[1770081029842,1.89961247,104.12,104.09,7.61400567]
[1770081030231,6.27432378,104.13,104.11,7.61400567]
[1770081030426,8.17393625,104.13,104.1,17.99422538]
[1770081032833,8.17393625,104.13,104.1,10.38021971]
[1770081033050,1.89961247,104.12,104.1,9.60614793]
[1770081033653,8.17393625,104.13,104.1,17.97649049]
[1770081034422,1.89961247,104.16,104.12,8.36456621]
[1770081034623,1.89961247,104.16,104.13,7.61400567]
[1770081035147,1.89961247,104.16,104.13,17.21736534]
[1770081035549,1.89961247,104.16,104.13,17.96221588]